[Event "FTX Road to Miami Prelims 2022"]
[Site "Online"]
[Date "2022.07.04"]
[Round "2.7"]
[White "Wojtaszek, Radoslaw"]
[Black "Dominguez Perez, Leinier"]
[Result "1/2-1/2"]
[ECO "D27"]
[WhiteElo "2708"]
[BlackElo "2754"]
[Annotator "TA"]
[PlyCount "205"]
[EventDate "2022.07.10"]
[EventType "tourn"]
[EventCountry "NET"]
[SourceTitle "playchess.com"]
[Source "ChessBase"]
[SourceQuality "1"]
[TimeControl "40/5400+30:1800+30"]

{[%evp 103,205,-110,-103,-103,-103,-110,-103,-103,-103,-109,-109,-110,-110,-110,-109,-110,-103,-103,-103,-103,-103,-29957,-29956,-6552,-5057,-29970,-29973,-29970,-29968,-29962,-1055,-983,-117,-117,-117,-117,-117,-117,-117,-117,-117,-117,-117,-117,-117,-117,-117,-117,-117,-117,-117,-117,-117,-117,-117,-117,-117,-117,-117,-117,0,0,0,0,0,0,0,0,0,0,0,0,0,0,0,0,0,0,0,0,0,0,0,0,0,0,0,0,0,0,0,0,0,0,0,0,0,0,0,0,0,0,0,0]} 1. d4 {[%emt 1:15:40]} d5 {[%emt 1:15:40]} 2. c4 {[%emt 0:00:24]} dxc4 {[%emt 0:00:21]} 3. e3 {[%emt 0:00:26]} Nf6 {[%emt 0:00:22]} 4. Bxc4 {[%emt 0:00:21]} e6 {[%emt 0:00:21]} 5. Nf3 {[%emt 0:00:24]} a6 {[%emt 0:00:21]} 6. O-O {[%emt 0:00:31]} c5 {[%emt 0:00:22]} 7. Nbd2 {[%emt 0:00:39]} cxd4 {[%emt 0:00:28]} 8. Nxd4 {[%emt 0:00:24]} Bc5 {[%emt 0:00:21]} 9. N2f3 {[%emt 0:01:24]} O-O {[%emt 0:00:37]} 10. b3 {[%emt 0:00:26]} Qe7 {[%emt 0:00:57]} 11. Ne5 {[%emt 0:03:11]} Nbd7 {[%emt 0:01:33]} 12. Ndf3 {[%emt 0:00:59]} Nxe5 {[%emt 0:00:38]} 13. Nxe5 {[%emt 0:00:21]} b5 {[%emt 0:01:05]} 14. Bd3 {[%emt 0:00:26]} Bb7 {[%emt 0:00:24]} 15. Bb2 {[%emt 0:00:24]} Rfd8 {[%emt 0:00:44]} 16. Qe2 {[%emt 0:00:22]} Ba3 {[%emt 0:00:54]} 17. Rfd1 {[%emt 0:01:16]} Rac8 {[%emt 0:01:56]} 18. Rac1 {[%emt 0:01:36]} h6 {[%emt 0:02:26]} 19. Rxc8 {[%emt 0:01:25]} Rxc8 {[%emt 0:00:23]} 20. Bd4 {[%emt 0:00:39]} Be4 {[%emt 0:02:31]} 21. Ng4 {[%emt 0:05:31]} Bxd3 {[%emt 0:00:32]} 22. Nxf6+ {[%emt 0:00:21]} Qxf6 {[%emt 0:00:21]} 23. Qxd3 {[%emt 0:00:21]} Qf5 {[%emt 0:02:40]} 24. e4 {[%emt 0:00:38]} Qh5 {[%emt 0:00:22]} 25. Be3 {[%emt 0:00:43]} Be7 {[%emt 0:01:22]} 26. f3 {[%emt 0:00:30]} Qe5 {[%emt 0:00:56]} 27. Bd4 {[%emt 0:01:41]} Qc7 {[%emt 0:00:40]} 28. Be3 {[%emt 0:00:41]} Bg5 {[%emt 0:01:31]} 29. Bf2 {[%emt 0:00:53]} Qc2 {[%emt 0:01:24]} 30. h4 {[%emt 0:00:42]} Bf6 {[%emt 0:00:35]} 31. Qd2 {[%emt 0:00:47]} a5 {[%emt 0:00:41]} 32. Be3 {[%emt 0:01:47]} a4 {[%emt 0:01:25]} 33. Rc1 {[%emt 0:00:45]} Qxc1+ {[%emt 0:00:27]} 34. Qxc1 {[%emt 0:00:21]} Rxc1+ {[%emt 0:00:20]} 35. Bxc1 {[%emt 0:00:20]} axb3 {[%emt 0:00:34]} 36. axb3 {[%emt 0:00:19]} Bxh4 {[%emt 0:00:22]} 37. Kf1 {[%emt 0:00:27]} Kf8 {[%emt 0:00:30]} 38. Ke2 {[%emt 0:00:24]} Ke8 {[%emt 0:00:25]} 39. Kd3 {[%emt 0:00:22]} Kd7 {[%emt 0:00:25]} 40. Bb2 {[%emt 0:00:30]} g6 {[%emt 0:00:29]} 41. Bg7 {[%emt 0:30:26]} h5 {[%emt 0:30:23]} 42. Kd4 {[%emt 0:00:46]} Kc6 {[%emt 0:00:46]} 43. Bf8 {[%emt 0:00:30]} Bf6+ {[%emt 0:00:24]} 44. Kd3 {[%emt 0:00:27]} Be5 {[%emt 0:00:23]} 45. Bb4 {[%emt 0:00:24]} f5 {[%emt 0:00:34]} 46. Be7 {[%emt 0:00:37]} Bd6 {[%emt 0:00:30]} 47. Bg5 {[%emt 0:00:23]} Bc5 {[%emt 0:00:29]} 48. Kc3 {[%emt 0:00:29]} Kd7 {[%emt 0:00:24]} 49. Kd3 {[%emt 0:00:24]} Be7 {[%emt 0:00:24]} 50. Bd2 {[%emt 0:00:29]} Bf6 {[%emt 0:00:21]} 51. f4 {[%emt 0:00:28]} Kc6 {[%emt 0:00:39]} 52. Be3 {[%emt 0:00:22]} Be7 {[%emt 0:00:46]} 53. Bc1 {[%emt 0:00:24]} Bc5 {[%emt 0:00:25]} 54. Bd2 {[%emt 0:00:30]} Bb6 {[%emt 0:00:33]} 55. Bc1 {[%emt 0:00:25]} Bg1 {[%emt 0:00:26]} 56. Bd2 {[%emt 0:01:09]} Kc5 {[%emt 0:00:26]} 57. Be1 {[%emt 0:00:28]} Bh2 {[%emt 0:00:30]} 58. Bd2 {[%emt 0:00:21]} Bg3 {[%emt 0:01:29]} 59. exf5 {[%emt 0:00:34]} exf5 {[%emt 0:00:50]} 60. Ke3 {[%emt 0:00:24]} Bh4 {[%emt 0:00:37]} 61. Kd3 {[%emt 0:00:22]} Bf6 {[%emt 0:00:27]} 62. Ke3 $2 {[%emt 0:00:23][%mdl 8192]} (62. Be3+ $17 Kd5 63. Bb6) 62... g5 $1 {[%emt 0:00:29]} 63. Kd3 {[%emt 0:01:25]} g4 {[%emt 0:00:23]} 64. Be3+ {[%emt 0:00:28]} Kd5 {[%emt 0:00:33]} 65. g3 {[%emt 0:00:44]} Be7 {[%emt 0:00:27]} 66. Bd4 {[%emt 0:00:23]} Bb4 {[%emt 0:00:22]} (66... h4 $142 67. gxh4 Bxh4 68. Bg1 Bg3 69. Ke3 Kc5 70. Kd3+ Kb4 71. Kd4 Bxf4 72. Kd5 Bg3 73. Be3 Kxb3 74. Kd4 Kc2 75. Bh6 b4 76. Kd5 b3 77. Bg7 b2 78. Ke6 f4 79. Be5 b1=Q 80. Kf5 Qb5 81. Ke6 Qc6+ 82. Ke7 Bh4+ 83. Kf8 Qc5+ 84. Kg7 Qxe5+ 85. Kh7 g3 86. Kh6 g2 87. Kh7 g1=Q 88. Kh6 Qh8#) 67. Bf6 $19 {[%emt 0:00:26] [#]} Ke6 $2 {[%emt 0:00:45]} (67... Bf8 $1 $19 {and Black stays clearly on top.} 68. Bd8 Kc5) 68. Bd8 {[%emt 0:00:24]} Bc5 {[%emt 0:00:38]} 69. Ke2 {[%emt 0:00:27]} Kd5 {[%emt 0:00:40]} 70. Kd3 {[%emt 0:00:21]} Bf2 {[%emt 0:00:23]} 71. Bh4 {[%emt 0:00:21]} Kc5 {[%emt 0:00:44]} 72. Be7+ {[%emt 0:00:29]} Kb6 {[%emt 0:00:23]} 73. Bh4 {[%emt 0:00:21]} Ka5 {[%emt 0:00:28]} 74. Kc3 {[%emt 0:00:23]} Be1+ {[%emt 0:00:24]} 75. Kc2 {[%emt 0:00:21]} Ka6 {[%emt 0:00:39]} 76. Kd3 {[%emt 0:00:25] [#]} Bf2 $1 {[%emt 0:00:26]} 77. Ke2 {[%emt 0:00:22]} Bc5 {[%emt 0:00:27]} 78. Kd3 {[%emt 0:00:20]} Kb7 {[%emt 0:00:23]} 79. Ke2 {[%emt 0:00:25]} Kc8 {[%emt 0:00:21]} 80. Kd3 {[%emt 0:00:45]} Kd7 {[%emt 0:00:22]} 81. Ke2 {[%emt 0:01:21]} Be7 {[%emt 0:00:28]} (81... Kc6 $17 {aiming for ...Bf8.} 82. Kd3 Kd7) 82. Bxe7 $11 {[%emt 0:00:23]} Kxe7 {[%emt 0:00:22]} 83. b4 $1 {[%emt 0:00:35]} Kf7 {[%emt 0:00:53]} 84. Kf2 $1 {[%emt 0:00:24]} Kg7 {[%emt 0:00:34]} 85. Kg1 {[%emt 0:00:35]} Kh7 {[%emt 0:00:25]} 86. Kh1 {[%emt 0:00:25]} Kh6 {[%emt 0:00:34]} 87. Kh2 {[%emt 0:00:23]} Kg7 {[%emt 0:00:27]} 88. Kg1 {[%emt 0:00:21]} Kf8 {[%emt 0:00:23]} 89. Kf2 {[%emt 0:00:23]} Kf7 {[%emt 0:00:30]} 90. Kf1 {[%emt 0:00:29]} Kg6 {[%emt 0:01:11]} 91. Kg2 {[%emt 0:00:22]} Kf6 {[%emt 0:00:26]} 92. Kf2 {[%emt 0:00:22]} Ke7 {[%emt 0:00:24]} 93. Ke3 {[%emt 0:00:22]} Ke8 {[%emt 0:00:31]} 94. Ke2 {[%emt 0:00:22]} Kd8 {[%emt 0:00:22]} 95. Kd2 {[%emt 0:00:23]} Kc7 {[%emt 0:00:23]} 96. Ke3 {[%emt 0:00:26]} Kc6 {[%emt 0:00:27]} 97. Ke2 {[%emt 0:00:28]} Kd7 {[%emt 0:00:24]} 98. Kd3 {[%emt 0:00:24]} Ke6 {[%emt 0:00:25]} 99. Ke2 {[%emt 0:00:22]} Ke7 {[%emt 0:00:34]} 100. Ke3 {[%emt 0:00:24]} Kf7 {[%emt 0:00:25]} 101. Kf2 {[%emt 0:00:25]} Kf6 {[%emt 0:00:45]} 102. Kf1 {[%emt 0:00:27]} Kg7 {[%emt 0:00:28]} 103. Kg1 {[%emt 0:00:24]} 1/2-1/2

[Event "FTX Road to Miami Prelims 2022"]
[Site "Online"]
[Date "2022.07.04"]
[Round "2.8"]
[White "Shankland, Sam"]
[Black "Wei, Yi"]
[Result "1/2-1/2"]
[ECO "B90"]
[WhiteElo "2720"]
[BlackElo "2727"]
[Annotator "TA"]
[PlyCount "68"]
[EventDate "2022.07.10"]
[EventType "tourn"]
[EventCountry "NET"]
[SourceTitle "playchess.com"]
[Source "ChessBase"]
[SourceQuality "1"]
[TimeControl "40/5400+30:1800+30"]

{[%evp 13,68,17,29,12,13,0,0,0,0,0,0,0,9,-29,38,32,31,50,23,26,35,28,30,0,102,53,79,72,68,33,48,0,0,0,329,0,0,0,0,-270,-261,-274,0,0,0,0,0,0,0,0,0,0,0,0,0,0,0]} 1. e4 {[%emt 1:15:40]} c5 {[%emt 1:15:40]} 2. Nf3 {[%emt 0:00:22]} d6 {[%emt 0:00:22]} 3. d4 {[%emt 0:00:21]} cxd4 {[%emt 0:00:21]} 4. Nxd4 {[%emt 0:00:20]} Nf6 {[%emt 0:00:21]} 5. Nc3 {[%emt 0:00:20]} a6 {[%emt 0:00:21]} 6. Be3 {[%emt 0:00:21]} e5 {[%emt 0:00:21]} 7. Nb3 {[%emt 0:00:23]} Be6 {[%emt 0:00:35]} 8. h3 {[%emt 0:00:21] B90: Sicilian Najdorf: Unusual White 6th moves, 6 Be3 Ng4 and 6 Be3 e5.} Be7 {[%emt 0:00:26]} 9. Qf3 {[%emt 0:00:24]} O-O {[%emt 0:00:56]} 10. g4 {[%emt 0:00:23]} a5 {[%emt 0:00:43]} 11. a4 {[%emt 0:00:23]} Na6 {[%emt 0:00:32]} 12. O-O-O {[%emt 0:01:39]} Nb4 {[%emt 0:00:30]} 13. Nc5 {[%emt 0:00:42] Hoping for g5.} (13. g5 $5 {[%cal Rg5f6]} Nd7 14. Bb5 $11) 13... Qc8 {[%emt 0:03:31]} (13... Qc7 $11 14. g5 dxc5 15. gxf6 Bxf6) 14. g5 $1 $14 {[%emt 0:02:52]} dxc5 {[%emt 0:01:08]} 15. gxf6 {[%emt 0:00:23]} Bxf6 {[%emt 0:00:21]} 16. Rg1 {[%emt 0:00:35]} Kh8 {[%emt 0:00:23] [#]} 17. Bb5 $146 {[%emt 0:02:57][%cal Oh3h4]} ({Predecessor:} 17. h4 c4 18. h5 Bh4 19. Qg2 Rg8 20. Qh2 Bf6 21. h6 g6 22. f4 Rd8 23. Be2 {1-0 (41) McKenzie,C (2345)-Zaas,D (2289) ICCF email 2015}) 17... c4 {[%emt 0:06:24]} (17... Bxh3 $2 18. Rg3 Rd8 19. Rh1 $18) 18. h4 {[%emt 0:03:23]} Nc6 {[%emt 0:02:24]} (18... Rd8 $11) 19. Bg5 {[%emt 0:02:20] White is more active.} (19. h5 $16 {Strongly threatening h6.} Nd4 20. Qg3) 19... Bxg5+ {[%emt 0:00:37]} 20. hxg5 {[%emt 0:00:20]} f5 {[%emt 0:01:37]} 21. Qh5 {[%emt 0:01:46][%mdl 1024] Black must now prevent Rh1. White has compensation.} (21. Rh1 $5 {[%cal Rf3h5]}) 21... Qe8 {[%emt 0:01:20]} 22. g6 {[%emt 0:00:31]} (22. Qxe8 $1 $14 Raxe8 23. Rge1) 22... h6 $11 {[%emt 0:00:28]} 23. Nd5 {[%emt 0:01:04] aiming for Rh1.} Rc8 $2 {[%emt 0:00:54][%mdl 8192]} (23... fxe4 $11 24. Nc7 Qe7 25. Nxa8 c3) 24. f3 $2 {[%emt 0:01:32]} (24. Rh1 $1 $18 {Intending Qg5 and mate.} Qd8 25. Ne3) 24... fxe4 {[%emt 0:00:34]} 25. fxe4 {[%emt 0:00:22]} Rf2 {[%emt 0:00:23]} 26. c3 $2 {[%emt 0:00:53][%mdl 8192]} (26. Rgf1 $11 {and White stays safe.} Rxf1 27. Rxf1) 26... Qf8 $19 {[%emt 0:00:30][%cal Oc6b4] Threatens to win with ...Nb4!} 27. Kb1 {[%emt 0:01:11] [#]} Nd4 $2 {[%emt 0:01:36]} 28. Qxe5 $11 {[%emt 0:00:43] The position is equal.} ({Not} 28. cxd4 $2 Bxd5 29. Qxh6+ gxh6 $19) 28... Rxb2+ {[%emt 0:00:41]} 29. Kxb2 {[%emt 0:00:36] The board is on fire.} Qf2+ {[%emt 0:00:24]} 30. Ka1 {[%emt 0:00:31]} Nc2+ {[%emt 0:00:21]} 31. Kb1 {[%emt 0:00:23]} Na3+ {[%emt 0:00:22]} 32. Ka1 {[%emt 0:00:22]} Nc2+ {[%emt 0:00:23]} 33. Kb1 {[%emt 0:00:23]} Na3+ {[%emt 0:00:21]} 34. Ka1 {[%emt 0:00:21] And now Rgf1 would win.} Nc2+ {[%emt 0:00:21] Weighted Error Value: White=0.47/Black=0.36} 1/2-1/2

[Event "FTX Road to Miami Prelims 2022"]
[Site "Online"]
[Date "2022.07.04"]
[Round "3.1"]
[White "Wei, Yi"]
[Black "Niemann, Hans Moke"]
[Result "1/2-1/2"]
[ECO "C65"]
[WhiteElo "2727"]
[BlackElo "2688"]
[Annotator "TA"]
[PlyCount "176"]
[EventDate "2022.07.10"]
[EventType "tourn"]
[EventCountry "NET"]
[SourceTitle "playchess.com"]
[Source "ChessBase"]
[SourceQuality "1"]
[TimeControl "40/5400+30:1800+30"]

{[%evp 9,176,16,24,6,14,15,30,0,0,0,0,0,0,0,19,22,12,11,31,41,56,54,69,71,181,101,99,109,110,102,112,97,95,65,67,67,161,165,161,166,162,164,160,158,188,162,169,160,215,207,246,0,192,0,238,239,800,183,389,386,366,343,327,243,234,237,229,231,297,285,279,246,295,288,527,287,351,0,374,380,379,192,200,200,186,183,161,126,185,122,140,96,180,171,174,183,185,191,200,210,202,201,200,192,294,294,322,278,423,419,359,222,206,195,433,402,421,376,563,462,622,0,418,0,531,425,650,629,558,511,565,405,4533,3523,1698,1743,11375,12814,10862,12448,8133,2046,1999,1022,5038,0,0,0,0,0,0,0,0,0,0,0,0,0,0,0,0,0,0,0,0,0,0,0,0]} 1. e4 {[%emt 1:15:40]} e5 {[%emt 1:15:40]} 2. Nf3 {[%emt 0:00:23]} Nc6 {[%emt 0:00:23]} 3. Bb5 {[%emt 0:00:22]} Nf6 {[%emt 0:00:22]} 4. d3 {[%emt 0:00:23]} Bc5 {[%emt 0:00:22]} 5. Bxc6 {[%emt 0:00:22]} dxc6 {[%emt 0:00:21]} 6. Nbd2 {[%emt 0:00:21] C65: Ruy Lopez: Berlin Defence (3...Nf6), unusual lines and 4 0-0 Bc5.} Be6 {[%emt 0:00:23]} 7. O-O {[%emt 0:00:24]} Qd6 {[%emt 0:00:31]} 8. Nb3 {[%emt 0:02:05] White has an edge.} Bb6 {[%emt 0:00:27]} 9. Bd2 {[%emt 0:00:23][%cal Bc1d2,Bd2c3,Bc3e5][%mdl 32] [#]} a5 $146 {[%emt 0:00:35]} ({Predecessor:} 9... Nd7 10. Ng5 Bxb3 11. axb3 f6 12. Nf3 O-O 13. Nh4 Qe6 14. Kh1 Rad8 15. g4 g6 {½-½ (48) Wei,Y (2694)-Anand,V (2770) Leon 2016}) 10. Qe1 {[%emt 0:00:35][%cal Rb3a5]} a4 {[%emt 0:00:54]} 11. Na5 {[%emt 0:00:24]} Ra7 {[%emt 0:01:08]} 12. Nc4 {[%emt 0:03:24]} Bxc4 {[%emt 0:00:25]} 13. dxc4 {[%emt 0:00:20]} O-O {[%emt 0:00:51]} 14. Bc3 {[%emt 0:04:00]} Re8 {[%emt 0:00:26]} 15. Rd1 {[%emt 0:01:02]} Qc5 {[%emt 0:00:32]} 16. b3 {[%emt 0:02:38]} Qa3 {[%emt 0:01:00]} (16... axb3 $16 17. axb3 Qe7) 17. Qe2 {[%emt 0:01:47]} (17. Nxe5 $6 Raa8 $14) (17. Bxe5 $6 axb3 18. axb3 Qe7 $16) (17. b4 $1 $18) 17... Raa8 $16 {[%emt 0:01:22]} 18. Bxe5 {[%emt 0:01:29]} Qe7 {[%emt 0:00:43]} 19. h3 {[%emt 0:01:06] Prevents Ng4.} axb3 {[%emt 0:01:19]} 20. cxb3 {[%emt 0:00:35]} h6 {[%emt 0:00:35]} 21. Qb2 {[%emt 0:01:51]} Nxe4 {[%emt 0:01:29]} 22. Bxg7 {[%emt 0:00:22]} Qe6 {[%emt 0:00:24]} ({Black should play} 22... Qa3 $14) 23. Bd4 $18 {[%emt 0:00:28]} Bxd4 {[%emt 0:00:38]} 24. Rxd4 {[%emt 0:00:28]} (24. Nxd4 Qg6 $16) 24... Qf6 {[%emt 0:00:26]} 25. Qc2 {[%emt 0:00:42]} Nc5 {[%emt 0:00:54]} 26. Rfd1 {[%emt 0:00:42]} Kh8 {[%emt 0:00:27]} 27. Qd2 {[%emt 0:00:37]} Ne6 {[%emt 0:00:33]} 28. Rh4 {[%emt 0:00:25]} Kg7 {[%emt 0:00:22]} (28... Kh7 $16 29. Re1 Rg8) 29. Rg4+ {[%emt 0:00:22]} Kh8 {[%emt 0:00:27]} 30. Rh4 {[%emt 0:00:22]} Kg7 {[%emt 0:00:23]} 31. Rg4+ {[%emt 0:00:34]} (31. Re1 $142) 31... Kh8 {[%emt 0:00:21] [#]} 32. Ne5 $1 {[%emt 0:00:25][%cal Bf3e5,Be5d7,Bd7f6][%mdl 544]} h5 $2 {[%emt 0:00:54]} (32... Re7 33. Re1 Rd8) (32... Nf8 33. f4) 33. Re4 $2 {[%emt 0:01:01]} (33. Nd7 Qf5 34. Qh6+ Qh7 35. Qf6+ Ng7 36. Rg5) 33... Kg8 $2 {[%emt 0:00:43]} (33... Nc5 $2 34. Nxf7+ $1 {[%mdl 512]} Qxf7 35. Rxe8+ Rxe8 36. Qd4+ Kh7 37. Qxc5) (33... Rad8 34. Nd7 Qg6 35. Qb2+ f6) 34. Nd7 {[%emt 0:00:28]} Qg7 {[%emt 0:00:29]} 35. Qe2 {[%emt 0:00:26]} Qg6 {[%emt 0:01:13]} 36. Qxh5 {[%emt 0:00:40]} Qxh5 {[%emt 0:00:26]} 37. Nf6+ {[%emt 0:00:21]} Kf8 {[%emt 0:00:23]} 38. Nxh5 {[%emt 0:00:21]} Rxa2 {[%emt 0:00:20]} 39. Nf6 {[%emt 0:00:30]} Rea8 {[%emt 0:00:27]} 40. Nd7+ {[%emt 0:00:24]} Kg7 {[%emt 0:00:51]} 41. Rg4+ {[%emt 0:30:23]} Kh7 $2 {[%emt 0:30:27]} (41... Kh6 42. Ne5 Ra1 43. Rxa1 Rxa1+ 44. Kh2 Kh7 45. Nxf7 Rb1 46. Ng5+ Nxg5) 42. Rh4+ {[%emt 0:00:21]} Kg6 {[%emt 0:00:28]} 43. Rg4+ $2 {[%emt 0:00:25]} ({White must play} 43. Rd3 $18) 43... Kf5 {[%emt 0:00:30][%mdl 8192]} (43... Kh7 $11 {and Black has nothing to worry.}) 44. Rd3 {[%emt 0:00:27]} Ng5 {[%emt 0:00:33] Prevents Rf3+.} 45. Rdg3 {[%emt 0:00:42]} (45. Re3 $142 {Intending Re5+ and mate.} f6 46. Rd4) 45... f6 {[%emt 0:00:41] [#]} 46. Nxf6 $1 {[%emt 0:00:28][%mdl 512]} Nxh3+ {[%emt 0:00:26]} 47. gxh3 {[%emt 0:01:02] Rf3+ would kill now.} Kxf6 {[%emt 0:00:21][%mdl 4096] Endgame KRR-KRR} 48. Rg7 {[%emt 0:00:47]} Ke5 {[%emt 0:00:45]} (48... Rc8 $16 {was necessary.} 49. h4 Rh8) 49. Rf3 {[%emt 0:00:34]} (49. Rxc7 $18 Rf8 50. Rg2 (50. Rxb7 Rfxf2 51. Re7+ Kd4 $16)) 49... Kd6 $16 {[%emt 0:00:31]} 50. Rf6+ {[%emt 0:00:34]} Kc5 {[%emt 0:00:23]} (50... Ke5 $16 51. Rf3 Kd6) 51. Rxc7 $18 {[%emt 0:00:40]} Rg8+ {[%emt 0:00:22]} 52. Kh2 {[%emt 0:00:23]} Ra1 {[%emt 0:00:35]} 53. Rf3 {[%emt 0:00:28]} b6 {[%emt 0:00:35]} 54. b4+ {[%emt 0:00:36]} ({And not} 54. Rf6 Rag1 55. Rfxc6+ (55. Rcxc6+ Kb4 $11) 55... Kd4 56. Rd6+ Kc3 $11) 54... Kxc4 {[%emt 0:00:26]} 55. Rxc6+ {[%emt 0:00:21]} Kb5 {[%emt 0:00:21]} 56. Re6 {[%emt 0:00:32]} Rgg1 {[%emt 0:00:35]} (56... Rb8 $142 57. Rff6 Rb1) 57. Rf5+ {[%emt 0:00:25]} Kxb4 {[%emt 0:00:40]} 58. Rxb6+ {[%emt 0:00:22]} Kc4 {[%emt 0:00:21]} (58... Kc3 $142 59. Rh6 Kd3) 59. Rh6 {[%emt 0:00:43]} Kd3 {[%emt 0:00:24]} 60. Re6 {[%emt 0:00:38] Black must now prevent Rf4.} Kd4 {[%emt 0:00:26]} 61. Re3 {[%emt 0:00:32]} Rgf1 $2 {[%emt 0:00:48]} (61... Raf1 62. Rf4+ Kd5) 62. Kg2 {[%emt 0:00:32]} Rg1+ {[%emt 0:00:30]} 63. Kf3 {[%emt 0:00:21]} Rg8 {[%emt 0:00:40]} (63... Rh1 {is a better defense.} 64. Re4+ Kd3 65. Rd5+ Kc3) 64. Re4+ {[%emt 0:00:31]} Kd3 {[%emt 0:00:23]} 65. Re3+ {[%emt 0:00:34]} Kd4 {[%emt 0:00:22]} 66. Re4+ {[%emt 0:00:28]} Kd3 {[%emt 0:00:21]} 67. Rg4 {[%emt 0:00:23]} Rh8 {[%emt 0:00:26]} (67... Re8 $142 68. Rd5+ Kc3) 68. Kg2 {[%emt 0:00:21]} Re1 {[%emt 0:00:37]} 69. Rf3+ {[%emt 0:00:31]} Kd2 {[%emt 0:00:24]} 70. Ra4 {[%emt 0:00:27] Ra2+ is the strong threat.} Re7 {[%emt 0:00:38]} (70... Kc2 $142 71. h4 Re5) 71. Ra2+ {[%emt 0:00:23]} Kc1 {[%emt 0:00:24]} 72. Re3 {[%emt 0:00:29]} Rg8+ {[%emt 0:00:38]} 73. Kf1 {[%emt 0:01:03]} Rxe3 {[%emt 0:00:26]} 74. fxe3 {[%emt 0:00:20] KR-KR} Rg3 {[%emt 0:00:21]} 75. e4 {[%emt 0:00:49]} (75. Rh2 $142 Kd1 76. h4) 75... Rxh3 {[%emt 0:00:22]} 76. e5 {[%emt 0:00:30] Hoping for Kg2.} Kd1 {[%emt 0:00:21] [#]} 77. e6 $2 {[%emt 0:00:32]} (77. Ra5 $1 $18 Kd2 78. Kf2) 77... Rf3+ $11 {[%emt 0:00:35] The position is equal.} 78. Kg2 {[%emt 0:00:24]} Re3 {[%emt 0:00:21]} 79. Ra6 {[%emt 0:00:25] Threatens to win with Kf2.} Ke2 {[%emt 0:00:30]} 80. Rd6 {[%emt 0:00:24]} Ke1 {[%emt 0:00:28]} 81. Rb6 {[%emt 0:00:33]} Ke2 {[%emt 0:00:21]} 82. Rd6 {[%emt 0:00:34]} Ke1 {[%emt 0:00:28]} 83. Rb6 {[%emt 0:00:35]} Ke2 {[%emt 0:00:21]} 84. Rb2+ {[%emt 0:00:28]} Ke1 {[%emt 0:00:22]} 85. Rf2 {[%emt 0:00:22]} Rxe6 {[%emt 0:00:24] ( -> ...Rg6+)} 86. Rf3 {[%emt 0:00:21]} Ke2 {[%emt 0:00:26]} 87. Ra3 {[%emt 0:00:25]} Re3 {[%emt 0:00:22]} 88. Rxe3+ {[%emt 0:00:21]} Kxe3 {[%emt 0:00:20] White really could win this.  Weighted Error Value: White=0.42/Black=0.41} 1/2-1/2